[Event "44th Chess Olympiad Women 2022"]
[Site "Chennai"]
[Date "2022.07.31"]
[Round "3.53"]
[White "Grishina, Alexandra"]
[Black "Meddeb, Chadha"]
[Result "1-0"]
[WhiteElo "2012"]
[BlackElo "1561"]
[Annotator "NA"]
[PlyCount "41"]
[EventDate "2022.??.??"]
[TimeControl "60"]

1. Nf3 {[%emt 0:00:20]} d5 {[%emt 0:00:48]} 2. d4 {[%emt 0:00:33]} Nf6 {
[%emt 0:01:11]} 3. g3 {[%emt 0:01:30]} Bf5 {[%emt 0:05:15]} 4. Bg2 {[%emt 0:00:
00]} e6 {[%emt 0:00:23]} 5. O-O {[%emt 0:01:12]} c5 {[%emt 0:00:56]} 6. c4 {
[%emt 0:04:37]} Nc6 {[%emt 0:08:43]} 7. Nc3 {[%emt 0:10:58]} Be7 {[%emt 0:00:
00]} 8. cxd5 {[%emt 0:12:04]} Nxd5 {[%emt 0:03:23]} 9. Nxd5 {[%emt 0:06:43]}
exd5 {[%emt 0:12:35]} 10. dxc5 {[%emt 0:07:00]} Bxc5 {[%emt 0:04:14]} 11. Bg5 {
[%emt 0:08:14]} f6 {[%emt 0:03:29]} 12. Bf4 {[%emt 0:07:56]} O-O {[%emt 0:00:
00]} 13. Qb3 {[%emt 0:04:06]} Na5 {[%emt 0:07:21]} 14. Qb5 {[%emt 0:08:58]} Rc8
{[%emt 0:02:08]} 15. b4 {[%emt 0:02:33]} Bxb4 {[%emt 0:16:31]} 16. Qxb4 {
[%emt 0:01:14]} Rc4 {[%emt 0:03:10]} 17. Qa3 {[%emt 0:03:55]} Re8 {[%emt 0:00:
00]} 18. Rac1 {[%emt 0:01:20]} Rxe2 {[%emt 0:02:46]} 19. Rfd1 {[%emt 0:05:20]}
Qb6 {[%emt 0:02:06]} 20. Be3 {[%emt 0:00:57]} Qe6 {[%emt 0:00:41]} 21. Nd4 {
[%emt 0:00:18]} 1-0

[Event "44th Chess Olympiad Women 2022"]
[Site "Chennai"]
[Date "2022.07.31"]
[Round "3.53"]
[White "Hwass Zeineb"]
[Black "Darweeche, Roaa"]
[Result "1-0"]
[WhiteElo "1386"]
[BlackElo "1548"]
[Annotator "NA RC"]
[PlyCount "173"]
[EventDate "2022.??.??"]
[TimeControl "60"]

1. d4 {[%emt 0:00:02]} f5 {[%emt 0:00:25]} 2. c4 {[%emt 0:01:05]} g6 {[%emt 0:
00:00]} 3. Nc3 {[%emt 0:01:02]} Bg7 {[%emt 0:00:13]} 4. e4 {[%emt 0:01:58]}
fxe4 {[%emt 0:05:05]} 5. Nxe4 {[%emt 0:00:08]} d6 {[%emt 0:03:51]} 6. Nf3 {
[%emt 0:05:46]} Nf6 {[%emt 0:08:09]} 7. Nxf6+ {[%emt 0:05:58]} exf6 {[%emt 0:
00:00]} 8. h3 {[%emt 0:02:58]} O-O {[%emt 0:01:11]} 9. Bd3 {[%emt 0:02:25]} Nd7
{[%emt 0:12:03]} 10. O-O {[%emt 0:00:57]} Kh8 {[%emt 0:09:07]} 11. Be3 {
[%emt 0:04:25]} Nb6 {[%emt 0:02:49]} 12. Qd2 {[%emt 0:04:42]} Be6 {[%emt 0:00:
00]} 13. d5 {[%emt 0:06:14]} Bf7 {[%emt 0:00:34]} 14. Bh6 {[%emt 0:04:24]} Nd7
{[%emt 0:03:38]} 15. Bxg7+ {[%emt 0:05:28]} Kxg7 {[%emt 0:00:07]} 16. Nd4 {
[%emt 0:00:34]} Re8 {[%emt 0:02:00]} 17. f4 {[%emt 0:03:11]} f5 {[%emt 0:08:44]
} 18. Rae1 {[%emt 0:08:21]} Nf8 {[%emt 0:02:10]} 19. Qc3 {[%emt 0:07:41]} Kg8 {
[%emt 0:01:14]} 20. Bxf5 {[%emt 0:01:00]} Qf6 {[%emt 0:10:27]} 21. Rxe8 {
[%emt 0:04:16]} Rxe8 {[%emt 0:00:08]} 22. Bc2 {[%emt 0:00:49]} a6 {[%emt 0:00:
00]} 23. Nb5 {[%emt 0:01:17]} Qe7 {[%emt 0:05:36]} 24. Nd4 {[%emt 0:00:23]}
Qe3+ {[%emt 0:04:57]} 25. Qxe3 {[%emt 0:00:25]} Rxe3 {[%emt 0:00:02]} 26. Kf2 {
[%emt 0:06:02]} Re8 {[%emt 0:00:51]} 27. Rd1 {[%emt 0:02:06]} Kg7 {[%emt 0:00:
00]} 28. Rd3 {[%emt 0:03:09]} Kf6 {[%emt 0:02:10]} 29. Rb3 {[%emt 0:01:34]} b5
{[%emt 0:01:21]} 30. cxb5 {[%emt 0:06:20]} Bxd5 {[%emt 0:00:07]} 31. Ra3 {
[%emt 0:02:07]} axb5 {[%emt 0:02:23]} 32. Nxb5 {[%emt 0:00:14]} Re7 {[%emt 0:
00:00]} 33. g3 {[%emt 0:02:04]} Bc4 {[%emt 0:01:25]} 34. Nc3 {[%emt 0:00:56]}
Nd7 {[%emt 0:00:52]} 35. Ne4+ {[%emt 0:03:59]} Kg7 {[%emt 0:00:27]} 36. Re3 {
[%emt 0:01:25]} d5 {[%emt 0:01:23]} 37. Nc3 {[%emt 0:00:43]} Rf7 {[%emt 0:00:
00]} 38. b3 {[%emt 0:00:18]} d4 {[%emt 0:00:09]} 39. Re4 {[%emt 0:00:58]} Bd3 {
[%emt 0:02:42]} 40. Bxd3 {[%emt 0:00:20]} dxc3 {[%emt 0:00:07]} 41. Rc4 {
[%emt 0:30:08]} Ne5 {[%emt 0:30:56]} 42. Rxc3 {[%emt 0:00:18]} Nxd3+ {[%emt 0:
00:00]} 43. Rxd3 {[%emt 0:00:01]} c6 {[%emt 0:00:17]} 44. b4 {[%emt 0:00:27]}
Rb7 {[%emt 0:00:16]} 45. a3 {[%emt 0:00:19]} Kf7 {[%emt 0:00:12]} 46. g4 {
[%emt 0:01:25]} Ke6 {[%emt 0:00:32]} 47. Kf3 {[%emt 0:00:14]} h6 {[%emt 0:00:
00]} 48. h4 {[%emt 0:00:40]} Rf7 {[%emt 0:00:35]} 49. Ke4 {[%emt 0:00:51]} Rf8
{[%emt 0:00:28]} 50. a4 {[%emt 0:01:15]} Ra8 {[%emt 0:00:14]} 51. f5+ {[%emt 0:
00:00]} gxf5+ {[%emt 0:00:18]} 52. gxf5+ {[%emt 0:00:03]} Ke7 {[%emt 0:00:16]}
53. a5 {[%emt 0:00:15]} Rb8 {[%emt 0:00:09]} 54. Rd4 {[%emt 0:00:14]} Rb5 {
[%emt 0:00:22]} 55. a6 {[%emt 0:02:16]} Rb6 {[%emt 0:00:09]} 56. Ke5 {[%emt 0:
00:00]} Rb5+ {[%emt 0:00:13]} 57. Kf4 {[%emt 0:00:43]} Rb6 {[%emt 0:00:12]} 58.
Re4+ {[%emt 0:00:31]} Kf7 {[%emt 0:00:18]} 59. Re6 {[%emt 0:00:20]} Rxb4+ {
[%emt 0:00:13]} 60. Re4 {[%emt 0:00:27]} Rb6 {[%emt 0:00:08]} 61. Ra4 {[%emt 0:
00:00]} Rb8 {[%emt 0:00:07]} 62. a7 {[%emt 0:00:10]} Ra8 {[%emt 0:00:02]} 63.
Ke5 {[%emt 0:00:16]} Ke7 {[%emt 0:00:37]} 64. f6+ {[%emt 0:00:17]} Kd7 {
[%emt 0:00:30]} 65. f7 {[%emt 0:00:27]} Ke7 {[%emt 0:00:05]} 66. Rf4 {[%emt 0:
00:00]} Kf8 {[%emt 0:00:14]} 67. Ra4 {[%emt 0:00:46]} Kxf7 {[%emt 0:00:16]} 68.
Kd6 {[%emt 0:00:05]} Kg6 {[%emt 0:00:27]} 69. Kxc6 {[%emt 0:00:07]} Kh5 {
[%emt 0:00:03]} 70. Kb7 {[%emt 0:00:13]} Rxa7+ {[%emt 0:00:32]} 71. Kxa7 {
[%emt 0:00:09]} Kg6 {[%emt 0:00:04]} 72. Ra5 {[%emt 0:00:25]} Kg7 {[%emt 0:00:
00]} 73. Ra6 {[%emt 0:00:12]} Kh7 {[%emt 0:00:09]} 74. Kb7 {[%emt 0:00:15]} h5
{[%emt 0:00:11]} 75. Kc7 {[%emt 0:00:10]} Kg7 {[%emt 0:00:06]} 76. Kd7 {
[%emt 0:00:19]} Kh7 {[%emt 0:00:04]} 77. Ke6 {[%emt 0:00:29]} Kg6 {[%emt 0:00:
00]} 78. Ke5+ {[%emt 0:00:05]} Kg7 {[%emt 0:00:05]} 79. Kf5 {[%emt 0:00:07]}
Kh7 {[%emt 0:00:06]} 80. Kg5 {[%emt 0:00:04]} Kg7 {[%emt 0:00:04]} 81. Ra7+ {
[%emt 0:00:04]} Kf8 {[%emt 0:00:10]} 82. Kxh5 {[%emt 0:00:17]} Kg8 {[%emt 0:00:
00]} 83. Kg6 {[%emt 0:00:04]} Kf8 {[%emt 0:00:06]} 84. h5 {[%emt 0:00:03]} Ke8
{[%emt 0:00:05]} 85. h6 {[%emt 0:00:04]} Kf8 {[%emt 0:00:04]} 86. h7 {[%emt 0:
00:00]} Ke8 {[%emt 0:00:04]} 87. h8=Q# {[%emt 0:00:14]} 1-0

[Event "44th Chess Olympiad Women 2022"]
[Site "Chennai"]
[Date "2022.07.31"]
[Round "3.54"]
[White "James, Shemilah"]
[Black "Punsalan, Vyanla M"]
[Result "0-1"]
[WhiteElo "1590"]
[BlackElo "1895"]
[Annotator "NA RC"]
[PlyCount "84"]
[EventDate "2022.??.??"]
[TimeControl "60"]

1. e4 {[%emt 0:00:09]} c6 {[%emt 0:00:18]} 2. d4 {[%emt 0:00:26]} d5 {[%emt 0:
00:00]} 3. exd5 {[%emt 0:00:20]} cxd5 {[%emt 0:00:13]} 4. Bd3 {[%emt 0:00:44]}
Nc6 {[%emt 0:00:49]} 5. c3 {[%emt 0:00:28]} Qc7 {[%emt 0:01:57]} 6. Be3 {
[%emt 0:04:17]} Nf6 {[%emt 0:07:41]} 7. Nf3 {[%emt 0:03:53]} Bg4 {[%emt 0:00:
00]} 8. Nbd2 {[%emt 0:02:03]} e6 {[%emt 0:01:28]} 9. h3 {[%emt 0:03:16]} Bh5 {
[%emt 0:01:40]} 10. O-O {[%emt 0:05:51]} Bd6 {[%emt 0:03:11]} 11. Rc1 {[%emt 0:
00:00]} O-O {[%emt 0:03:36]} 12. Qc2 {[%emt 0:03:32]} Rac8 {[%emt 0:06:32]} 13.
Bg5 {[%emt 0:04:54]} Bg6 {[%emt 0:04:44]} 14. Bxg6 {[%emt 0:03:33]} hxg6 {
[%emt 0:01:20]} 15. a3 {[%emt 0:02:16]} Nh7 {[%emt 0:05:55]} 16. Be3 {[%emt 0:
00:00]} Qe7 {[%emt 0:04:25]} 17. Rfe1 {[%emt 0:01:56]} f5 {[%emt 0:02:35]} 18.
Nf1 {[%emt 0:03:34]} g5 {[%emt 0:03:51]} 19. N1h2 {[%emt 0:08:55]} Bxh2+ {
[%emt 0:11:43]} 20. Kxh2 {[%emt 0:01:05]} g4 {[%emt 0:02:39]} 21. Ne5 {[%emt 0:
00:00]} Nxe5 {[%emt 0:03:02]} 22. dxe5 {[%emt 0:00:05]} f4 {[%emt 0:01:21]} 23.
Bxa7 {[%emt 0:04:58]} Qh4 {[%emt 0:06:00]} 24. f3 {[%emt 0:07:33]} Qg3+ {
[%emt 0:01:46]} 25. Kh1 {[%emt 0:00:37]} gxh3 {[%emt 0:01:57]} 26. Qf2 {
[%emt 0:00:59]} hxg2+ {[%emt 0:01:02]} 27. Qxg2 {[%emt 0:00:19]} Qh4+ {[%emt 0:
00:00]} 28. Qh2 {[%emt 0:01:06]} Qe7 {[%emt 0:03:41]} 29. Kg1 {[%emt 0:02:26]}
Rf5 {[%emt 0:01:26]} 30. Kf2 {[%emt 0:00:39]} Nf8 {[%emt 0:03:35]} 31. Rh1 {
[%emt 0:03:50]} b6 {[%emt 0:05:58]} 32. Bxb6 {[%emt 0:02:26]} Qb7 {[%emt 0:00:
00]} 33. Rcg1 {[%emt 0:02:32]} Qxb6+ {[%emt 0:01:15]} 34. Kf1 {[%emt 0:00:15]}
Qb5+ {[%emt 0:01:01]} 35. Ke1 {[%emt 0:00:04]} Qd3 {[%emt 0:01:53]} 36. Qh8+ {
[%emt 0:00:12]} Kf7 {[%emt 0:00:01]} 37. Qxg7+ {[%emt 0:01:32]} Ke8 {[%emt 0:
00:00]} 38. Rh8 {[%emt 0:00:50]} Qb1+ {[%emt 0:01:00]} 39. Kf2 {[%emt 0:00:13]}
Qxb2+ {[%emt 0:01:16]} 40. Kf1 {[%emt 0:00:02]} Rxc3 {[%emt 0:00:54]} 41. Qg6+
{[%emt 0:13:10]} Kd7 {[%emt 0:00:36]} 42. Qh7+ {[%emt 0:04:46]} Kc6 {[%emt 0:
00:00]} 0-1

[Event "44th Chess Olympiad Women 2022"]
[Site "Chennai"]
[Date "2022.07.31"]
[Round "3.54"]
[White "Martin, Kayla"]
[Black "Thurner, Anya"]
[Result "0-1"]
[WhiteElo "1138"]
[BlackElo "1619"]
[Annotator "NA RC"]
[PlyCount "64"]
[EventDate "2022.??.??"]
[TimeControl "60"]

1. d4 {[%emt 0:00:08]} d5 {[%emt 0:00:05]} 2. c4 {[%emt 0:00:12]} e6 {[%emt 0:
00:00]} 3. Nc3 {[%emt 0:00:13]} Nf6 {[%emt 0:00:08]} 4. Bf4 {[%emt 0:00:14]}
Be7 {[%emt 0:00:32]} 5. Nf3 {[%emt 0:00:26]} O-O {[%emt 0:00:32]} 6. e3 {
[%emt 0:00:12]} b6 {[%emt 0:00:35]} 7. Bd3 {[%emt 0:00:25]} Bb7 {[%emt 0:00:49]
} 8. O-O {[%emt 0:00:42]} c5 {[%emt 0:01:42]} 9. Qc2 {[%emt 0:02:09]} Nc6 {
[%emt 0:02:07]} 10. a3 {[%emt 0:03:03]} cxd4 {[%emt 0:04:13]} 11. exd4 {
[%emt 0:01:29]} dxc4 {[%emt 0:01:52]} 12. Bxc4 {[%emt 0:03:51]} Nxd4 {[%emt 0:
00:00]} 13. Nxd4 {[%emt 0:00:45]} Qxd4 {[%emt 0:00:37]} 14. Ne2 {[%emt 0:00:52]
} Qc5 {[%emt 0:06:06]} 15. b4 {[%emt 0:09:40]} Qc6 {[%emt 0:01:29]} 16. f3 {
[%emt 0:02:57]} Rac8 {[%emt 0:00:18]} 17. Rad1 {[%emt 0:07:52]} Qxc4 {[%emt 0:
00:00]} 18. Qb2 {[%emt 0:11:19]} Ba6 {[%emt 0:08:54]} 19. Rfe1 {[%emt 0:07:23]}
Rfd8 {[%emt 0:07:14]} 20. Rd4 {[%emt 0:04:14]} Rxd4 {[%emt 0:02:44]} 21. Nxd4 {
[%emt 0:01:49]} Qc3 {[%emt 0:04:03]} 22. Qf2 {[%emt 0:04:07]} Qxa3 {[%emt 0:00:
00]} 23. b5 {[%emt 0:03:57]} Bb7 {[%emt 0:00:59]} 24. Qg3 {[%emt 0:01:09]} Nh5
{[%emt 0:03:12]} 25. Qg4 {[%emt 0:01:47]} Nxf4 {[%emt 0:01:22]} 26. Qxf4 {
[%emt 0:00:56]} Qb4 {[%emt 0:00:58]} 27. Rd1 {[%emt 0:00:52]} Bc5 {[%emt 0:00:
00]} 28. Kh1 {[%emt 0:00:52]} Bxd4 {[%emt 0:01:41]} 29. h3 {[%emt 0:01:25]} e5
{[%emt 0:01:16]} 30. Qg4 {[%emt 0:01:04]} Qxb5 {[%emt 0:01:17]} 31. f4 {
[%emt 0:01:51]} Qb2 {[%emt 0:02:23]} 32. Qd7 {[%emt 0:02:39]} Qxg2# {[%emt 0:
00:00]} 0-1

[Event "44th Chess Olympiad Women 2022"]
[Site "Chennai"]
[Date "2022.07.31"]
[Round "3.54"]
[White "Yu, Weiyang"]
[Black "Mohammed, Celine Angelina"]
[Result "1-0"]
[WhiteElo "1504"]
[BlackElo "1100"]
[Annotator "NA RC"]
[PlyCount "47"]
[EventDate "2022.??.??"]
[TimeControl "60"]

1. e4 {[%emt 0:00:03]} e5 {[%emt 0:00:06]} 2. Nf3 {[%emt 0:00:04]} Nc6 {
[%emt 0:00:07]} 3. Bb5 {[%emt 0:00:04]} a6 {[%emt 0:01:30]} 4. Ba4 {[%emt 0:00:
00]} d6 {[%emt 0:00:36]} 5. O-O {[%emt 0:00:23]} Nf6 {[%emt 0:00:28]} 6. Re1 {
[%emt 0:00:52]} Bd7 {[%emt 0:00:32]} 7. c3 {[%emt 0:00:29]} b5 {[%emt 0:06:48]}
8. Bc2 {[%emt 0:01:54]} Be7 {[%emt 0:06:54]} 9. d4 {[%emt 0:01:56]} O-O {
[%emt 0:02:43]} 10. h3 {[%emt 0:01:21]} Re8 {[%emt 0:05:46]} 11. Be3 {[%emt 0:
00:00]} Bf8 {[%emt 0:02:30]} 12. Nbd2 {[%emt 0:04:58]} d5 {[%emt 0:01:25]} 13.
Bg5 {[%emt 0:07:25]} h6 {[%emt 0:10:13]} 14. Bxf6 {[%emt 0:02:17]} Qxf6 {
[%emt 0:01:36]} 15. exd5 {[%emt 0:01:05]} Na7 {[%emt 0:09:35]} 16. dxe5 {
[%emt 0:01:12]} Qb6 {[%emt 0:06:28]} 17. Nb3 {[%emt 0:05:34]} Rad8 {[%emt 0:00:
00]} 18. Qd3 {[%emt 0:02:35]} g6 {[%emt 0:01:06]} 19. Nfd4 {[%emt 0:06:40]} a5
{[%emt 0:03:51]} 20. e6 {[%emt 0:05:38]} Bc8 {[%emt 0:02:41]} 21. Nc6 {[%emt 0:
00:00]} Nxc6 {[%emt 0:05:29]} 22. exf7+ {[%emt 0:00:11]} Kh8 {[%emt 0:04:20]}
23. fxe8=Q {[%emt 0:01:19]} Rxe8 {[%emt 0:00:46]} 24. Rxe8 {[%emt 0:00:12]} 1-0

[Event "44th Chess Olympiad Women 2022"]
[Site "Chennai"]
[Date "2022.07.31"]
[Round "3.54"]
[White "Zhang, Jasmine Haomo"]
[Black "La Fleur, Zara"]
[Result "1-0"]
[WhiteElo "1972"]
[BlackElo "1513"]
[Annotator "NA RC"]
[PlyCount "167"]
[EventDate "2022.??.??"]
[TimeControl "60"]

1. d4 {[%emt 0:00:03]} d5 {[%emt 0:00:17]} 2. Bf4 {[%emt 0:00:20]} Nf6 {
[%emt 0:00:23]} 3. e3 {[%emt 0:00:06]} c5 {[%emt 0:00:22]} 4. Nf3 {[%emt 0:00:
00]} Qb6 {[%emt 0:02:28]} 5. Nc3 {[%emt 0:02:13]} a6 {[%emt 0:06:40]} 6. Rb1 {
[%emt 0:05:52]} Nc6 {[%emt 0:03:59]} 7. Be2 {[%emt 0:01:30]} g6 {[%emt 0:04:16]
} 8. O-O {[%emt 0:03:14]} cxd4 {[%emt 0:08:34]} 9. exd4 {[%emt 0:00:05]} Bg7 {
[%emt 0:00:41]} 10. Be5 {[%emt 0:06:48]} e6 {[%emt 0:09:38]} 11. Kh1 {[%emt 0:
00:00]} O-O {[%emt 0:02:14]} 12. Na4 {[%emt 0:06:28]} Qa5 {[%emt 0:02:09]} 13.
c3 {[%emt 0:01:15]} Ne4 {[%emt 0:16:13]} 14. b4 {[%emt 0:05:06]} Qd8 {[%emt 0:
00:00]} 15. Bxg7 {[%emt 0:00:21]} Kxg7 {[%emt 0:00:00]} 16. Nd2 {[%emt 0:00:45]
} Nd6 {[%emt 0:02:20]} 17. Bf3 {[%emt 0:07:37]} Qc7 {[%emt 0:09:08]} 18. Re1 {
[%emt 0:05:46]} Bd7 {[%emt 0:07:29]} 19. Nc5 {[%emt 0:00:21]} Nb5 {[%emt 0:00:
00]} 20. Qc1 {[%emt 0:03:32]} b6 {[%emt 0:11:31]} 21. Ncb3 {[%emt 0:04:59]}
Rac8 {[%emt 0:03:04]} 22. a4 {[%emt 0:00:44]} Nd6 {[%emt 0:00:30]} 23. Ra1 {
[%emt 0:00:58]} Ne7 {[%emt 0:01:17]} 24. Nb1 {[%emt 0:00:05]} Nc4 {[%emt 0:00:
00]} 25. a5 {[%emt 0:01:58]} Bb5 {[%emt 0:01:53]} 26. axb6 {[%emt 0:01:03]}
Qxb6 {[%emt 0:01:14]} 27. Nc5 {[%emt 0:03:33]} Rfe8 {[%emt 0:02:26]} 28. Re2 {
[%emt 0:03:09]} Nf5 {[%emt 0:01:04]} 29. Rea2 {[%emt 0:01:24]} Ra8 {[%emt 0:00:
00]} 30. g3 {[%emt 0:07:43]} Nfd6 {[%emt 0:00:32]} 31. h4 {[%emt 0:03:07]} Nb7
{[%emt 0:01:45]} 32. Nd2 {[%emt 0:01:53]} Nxc5 {[%emt 0:00:29]} 33. bxc5 {
[%emt 0:02:10]} Qd8 {[%emt 0:00:24]} 34. Be2 {[%emt 0:02:51]} Nxd2 {[%emt 0:00:
00]} 35. Qxd2 {[%emt 0:01:00]} Bxe2 {[%emt 0:00:10]} 36. Qxe2 {[%emt 0:00:02]}
a5 {[%emt 0:00:45]} 37. Qb5 {[%emt 0:00:09]} Qf6 {[%emt 0:00:27]} 38. Kg2 {
[%emt 0:02:32]} Reb8 {[%emt 0:00:43]} 39. Qc6 {[%emt 0:00:06]} Qf5 {[%emt 0:00:
00]} 40. Qc7 {[%emt 0:01:34]} h5 {[%emt 0:00:34]} 41. c6 {[%emt 0:31:34]} Qe4+
{[%emt 0:02:43]} 42. Kh2 {[%emt 0:00:00]} Qf3 {[%emt 0:09:23]} 43. Qe5+ {
[%emt 0:00:00]} Kg8 {[%emt 0:01:20]} 44. c7 {[%emt 0:00:00]} Rc8 {[%emt 0:00:
00]} 45. Rb1 {[%emt 0:00:00]} Qxc3 {[%emt 0:01:09]} 46. Rb8 {[%emt 0:00:00]}
Kh7 {[%emt 0:05:53]} 47. Rab2 {[%emt 0:00:00]} a4 {[%emt 0:03:09]} 48. Kg2 {
[%emt 0:00:00]} a3 {[%emt 0:06:28]} 49. Rxa8 {[%emt 0:00:00]} Qxc7 {[%emt 0:00:
00]} 50. Qxc7 {[%emt 0:00:00]} Rxc7 {[%emt 0:00:09]} 51. Rxa3 {[%emt 0:00:00]}
Kg7 {[%emt 0:00:25]} 52. Kf3 {[%emt 0:00:00]} Kf6 {[%emt 0:00:57]} 53. Ke3 {
[%emt 0:00:00]} e5 {[%emt 0:01:14]} 54. dxe5+ {[%emt 0:00:00]} Kxe5 {[%emt 0:
00:00]} 55. Kd3 {[%emt 0:00:00]} Rc6 {[%emt 0:00:38]} 56. Rc2 {[%emt 0:00:00]}
Rf6 {[%emt 0:00:50]} 57. Re2+ {[%emt 0:00:00]} Kf5 {[%emt 0:00:15]} 58. Kd4 {
[%emt 0:01:56]} Kg4 {[%emt 0:00:44]} 59. Kxd5 {[%emt 0:01:00]} Kh3 {[%emt 0:00:
00]} 60. Rae3 {[%emt 0:00:57]} Rf5+ {[%emt 0:00:24]} 61. Kd6 {[%emt 0:00:23]}
Rf6+ {[%emt 0:00:30]} 62. Ke7 {[%emt 0:00:23]} Rf5 {[%emt 0:00:41]} 63. Kf8 {
[%emt 0:02:41]} Rf6 {[%emt 0:00:42]} 64. Kg7 {[%emt 0:02:25]} Rf5 {[%emt 0:00:
00]} 65. Re7 {[%emt 0:00:32]} g5 {[%emt 0:01:02]} 66. hxg5 {[%emt 0:00:24]}
Rxg5+ {[%emt 0:00:27]} 67. Kxf7 {[%emt 0:00:27]} Rf5+ {[%emt 0:00:08]} 68. Kg6
{[%emt 0:00:21]} Rf3 {[%emt 0:00:57]} 69. Kxh5 {[%emt 0:00:39]} Rf5+ {[%emt 0:
00:00]} 70. Kg6 {[%emt 0:00:07]} Rf3 {[%emt 0:00:13]} 71. Rf7 {[%emt 0:00:42]}
Ra3 {[%emt 0:00:22]} 72. Re4 {[%emt 0:00:27]} Ra2 {[%emt 0:00:35]} 73. g4 {
[%emt 0:00:32]} Ra6+ {[%emt 0:00:30]} 74. Rf6 {[%emt 0:00:19]} Ra2 {[%emt 0:00:
00]} 75. g5 {[%emt 0:00:12]} Kg2 {[%emt 0:00:39]} 76. Kg7 {[%emt 0:00:17]} Ra5
{[%emt 0:00:33]} 77. g6 {[%emt 0:00:08]} Rg5 {[%emt 0:00:17]} 78. f3 {[%emt 0:
00:00]} Kg3 {[%emt 0:00:21]} 79. Rg4+ {[%emt 0:00:32]} Rxg4 {[%emt 0:00:25]}
80. fxg4 {[%emt 0:00:00]} Kxg4 {[%emt 0:00:06]} 81. Kf7 {[%emt 0:00:00]} Kg5 {
[%emt 0:00:12]} 82. g7 {[%emt 0:00:00]} Kh5 {[%emt 0:00:13]} 83. g8=Q {[%emt 0:
00:00]} Kh4 {[%emt 0:00:21]} 84. Rh6# {[%emt 0:00:44]} 1-0

[Event "44th Chess Olympiad Women 2022"]
[Site "Chennai"]
[Date "2022.07.31"]
[Round "3.55"]
[White "Almanzar Vasquez, Jeniffer Maria"]
[Black "Saraci, Rinesa"]
[Result "1/2-1/2"]
[WhiteElo "1762"]
[BlackElo "1494"]
[Annotator "NA RC"]
[PlyCount "99"]
[EventDate "2022.??.??"]
[TimeControl "60"]

1. c4 {[%emt 0:00:09]} Nf6 {[%emt 0:01:06]} 2. Nc3 {[%emt 0:00:08]} g6 {
[%emt 0:00:53]} 3. d3 {[%emt 0:02:12]} Bg7 {[%emt 0:01:54]} 4. g3 {[%emt 0:00:
00]} d6 {[%emt 0:02:00]} 5. Bg2 {[%emt 0:00:13]} O-O {[%emt 0:03:32]} 6. Nf3 {
[%emt 0:03:38]} Nc6 {[%emt 0:04:03]} 7. Bd2 {[%emt 0:01:34]} Re8 {[%emt 0:00:
00]} 8. O-O {[%emt 0:01:07]} e5 {[%emt 0:02:02]} 9. e4 {[%emt 0:05:18]} Bd7 {
[%emt 0:12:26]} 10. a3 {[%emt 0:03:46]} a5 {[%emt 0:02:31]} 11. Rb1 {[%emt 0:
00:00]} Bg4 {[%emt 0:03:42]} 12. Be3 {[%emt 0:11:17]} Qd7 {[%emt 0:06:08]} 13.
Qd2 {[%emt 0:09:27]} Bh3 {[%emt 0:09:36]} 14. Nb5 {[%emt 0:02:06]} Bxg2 {
[%emt 0:05:19]} 15. Kxg2 {[%emt 0:00:06]} b6 {[%emt 0:03:48]} 16. Ng1 {[%emt 0:
00:00]} Ng4 {[%emt 0:02:28]} 17. Ne2 {[%emt 0:03:00]} Nxe3+ {[%emt 0:02:43]}
18. fxe3 {[%emt 0:00:11]} Na7 {[%emt 0:01:06]} 19. Nxa7 {[%emt 0:02:10]} Rxa7 {
[%emt 0:00:14]} 20. Nc3 {[%emt 0:00:05]} Rf8 {[%emt 0:08:02]} 21. Rf2 {[%emt 0:
00:00]} f5 {[%emt 0:09:22]} 22. Rbf1 {[%emt 0:00:58]} fxe4 {[%emt 0:01:16]} 23.
Rxf8+ {[%emt 0:01:14]} Bxf8 {[%emt 0:00:07]} 24. Nxe4 {[%emt 0:00:32]} Bg7 {
[%emt 0:02:41]} 25. Qf2 {[%emt 0:02:53]} Ra8 {[%emt 0:01:29]} 26. Nf6+ {
[%emt 0:02:51]} Bxf6 {[%emt 0:00:23]} 27. Qxf6 {[%emt 0:00:05]} Re8 {[%emt 0:
00:00]} 28. Qf3 {[%emt 0:01:27]} Qe7 {[%emt 0:01:27]} 29. Qd5+ {[%emt 0:03:22]}
Kg7 {[%emt 0:02:10]} 30. Qc6 {[%emt 0:03:31]} Rf8 {[%emt 0:00:52]} 31. Rxf8 {
[%emt 0:01:28]} Kxf8 {[%emt 0:00:06]} 32. b4 {[%emt 0:00:42]} axb4 {[%emt 0:00:
00]} 33. axb4 {[%emt 0:00:02]} Kg7 {[%emt 0:00:45]} 34. b5 {[%emt 0:00:27]} Qf7
{[%emt 0:02:22]} 35. Qf3 {[%emt 0:02:23]} Qxf3+ {[%emt 0:00:13]} 36. Kxf3 {
[%emt 0:00:02]} Kf6 {[%emt 0:00:45]} 37. Ke4 {[%emt 0:04:24]} Ke6 {[%emt 0:00:
00]} 38. h4 {[%emt 0:05:05]} h6 {[%emt 0:02:02]} 39. g4 {[%emt 0:00:36]} h5 {
[%emt 0:02:13]} 40. g5 {[%emt 0:01:21]} Ke7 {[%emt 0:01:16]} 41. Kd5 {[%emt 0:
00:00]} Kd7 {[%emt 0:02:03]} 42. d4 {[%emt 0:00:00]} exd4 {[%emt 0:00:42]} 43.
exd4 {[%emt 0:00:00]} Ke7 {[%emt 0:01:24]} 44. Kc6 {[%emt 0:00:00]} Kd8 {
[%emt 0:00:34]} 45. c5 {[%emt 0:00:00]} bxc5 {[%emt 0:02:02]} 46. dxc5 {
[%emt 0:00:00]} dxc5 {[%emt 0:00:20]} 47. Kxc5 {[%emt 0:00:00]} Ke7 {[%emt 0:
00:00]} 48. Kd5 {[%emt 0:00:00]} Kd7 {[%emt 0:00:27]} 49. Ke5 {[%emt 0:00:00]}
Ke7 {[%emt 0:00:08]} 50. Ke4 {[%emt 0:00:34]} 1/2-1/2